{"text_format":"1","workbook":"xlsx","n_sheets":4,"sheets":["説明","入力用","入力例","リスト"],"not_rendered":{"charts":0,"images":0,"macros":1,"external_links":0,"defined_names":37,"comments":2,"pivot_tables":0},"unopened":[],"bounds":{"document_bytes":16777216,"sheet_cells":100000,"rows_first":2000,"rows_last":500,"rows_between":2000,"halvings":0,"cell_chars":16384,"cell_head_chars":4096},"cells_cut":0,"cells_raw":0,"read":"whole","date_system":"1900"}

{"sheet":"説明","index":0,"n_rows":47,"n_cols":7,"rows_kept":47,"cut":false,"hidden":false,"merged":[[7,1,7,6],[5,1,5,6],[18,2,18,3]]}
[]
[null,"※地区予選が終了いたしましたら、各郡市委員長は"]
[null,null,null,null,null,null,"次の手順で郡市の申し込みを行ってください。"]
[]
[]
[null,"　このファイルが各郡市ごとの参加申込書（結果一覧）です。"]
[]
[null,"下記の手順に従い、本ファイルをメールで送信してください。"]
[]
[]
[null,1,"　説明シートと入力例シートをプリントアウトして、申込方法と入力方法を確認して下さい。"]
[]
[null,2,"　入力用シートに、プリントアウトした入力例を参考にしながら、必要事項を入力してください。"]
[]
[null,3,"　入力が完了したら、『ファイル→名前を付けて保存』を実行してください。ファイル名は"]
[null,null,"「2026県総体（新人）卓球申込・○○市（郡）」のようにつけてください。"]
[]
[null,4,"　保存したファイルを、メールに添付してお送りください。メールの送付先アドレスは、"]
[null,null,"gunmajhs.takkyu@gmail.com",null,"（←クリックすると、メーラーが立ち上がります）です。"]
[]
[]
[null,null,"送付先"]
[null,null,"〒372-0013","伊勢崎市上植木本町１７０２－１"]
[null,null,null,"伊勢崎市立四ツ葉学園中等教育学校　　天田　智之　宛"]
[null,null,null,"TEL：０２７０－２１－４１５１",null,"FAX：０２７０－２３－０２９２"]
[null,null,null,"E-mail：","gunmajhs.takkyu@gmail.com","←必ずこちらに送って下さい"]
[]
[]
[]
[null,5,"　これで、郡市申込が終了となります。"]
[null,null,"　なお、郡市申込に関しては、データでの送付のみとさせていただきます。ＦＡＸでの申込は、"]
[null,null,"ご遠慮下さい。"]
[null,null,"　また、各郡市ごとに事務局に結果を提出する形式があるかと思いますが、このデータ"]
[null,null,"を元に組合せ会議資料等を作成しますので、必ず、このファイルに入力して、送付して"]
[null,null,"下さい。"]
[]
[null,6,"　大会要項に締め切り日が記載してありますが、郡市の申込（結果）については、大会終了後"]
[null,null,"速やかに提出していただけるよう、ご協力をお願いします。"]
[null,null,"　また、参加校の顧問の先生方にも、各校の申込を速やかにしていただけるよう、連絡をお願い"]
[null,null,"します。"]
[]
[null,7,"　送られたデータは、そのままプログラム等に利用させていただきますので、各校の顧問に確認"]
[null,null,"のうえ、正確に入力してください。なお、氏名で「こう表記したいが、パソコンでは出ない」と"]
[null,null,"いう場合には、遠慮なくご相談ください。出来る限り対応させていただきます。"]
[]
[null,8,"　送られた情報は、県中体連卓球部の運営・広報（報道機関・ウェブページ）並びに上位大会等"]
[null,null,"の送付に利用いたします。それ以外の目的では利用いたしません。"]

{"sheet":"入力用","index":1,"n_rows":35,"n_cols":14,"rows_kept":35,"cut":false,"hidden":false,"merged":[[0,1,0,13],[1,1,1,6],[1,8,1,13],[3,2,3,4],[2,2,2,4],[17,4,17,6],[6,2,6,4],[5,2,5,4],[4,2,4,4],[10,2,10,4],[9,2,9,4],[8,2,8,4],[7,2,7,4],[11,4,11,6],[12,4,12,6],[13,4,13,6],[14,4,14,6],[15,4,15,6],[16,4,16,6],[16,11,16,13],[17,11,17,13],[11,11,11,13],[12,11,12,13],[13,11,13,13],[14,11,14,13],[15,11,15,13]]}
[null,"郡市参加一覧（入力・mail用）"]
[null,"男子入力",null,null,null,null,null,null,"女子入力"]
[1,"申込日　　（記入日）","2026/",null,null,null,null,1]
[2,"開催年度",2026,null,null,null,null,2]
[3,"大会名",null,null,null,null,null,3]
[4,"郡市名　　(中体連組織)","伊勢崎市・佐波郡",null,null,{"$f":"_xlfn.IFS(C6=\"前橋市\",\"前橋\",C6=\"高崎市\",\"高崎\",C6=\"桐生市・みどり市\",\"桐生みどり\",C6=\"伊勢崎市・佐波郡\",\"伊勢崎佐波\",C6=\"太田市\",\"太田\",C6=\"沼田市\",\"太田\",C6=\"館林市\",\"館林\",C6=\"渋川市・北群馬郡\",\"渋川北群馬\",C6=\"藤岡市・多野郡\",\"藤岡多野\",C6=\"富岡市・甘楽郡\",\"富岡甘楽\",C6=\"安中市\",\"安中\",C6=\"吾妻郡\",\"吾妻\",C6=\"利根郡\",\"利根\",C6=\"邑楽郡\",\"邑楽\")","v":"伊勢崎佐波"},null,4]
[5,"委員長勤務　学校名","伊勢崎市立第一中学校",null,null,null,null,5]
[6,"委員長名",null,null,null,null,null,6]
[7,"委員長勤務　学校電話番号",null,null,null,null,null,7]
[8,"委員長勤務　学校ＦＡＸ",null,null,null,null,null,8]
[9,"委員長連絡先\n（携帯）",null,null,null,null,null,9]
[10,"団体戦","ﾁｰﾑ\n推薦","地区推薦","学校(チーム)名",null,null,10,{"$f":"B12","v":"団体戦"},"ﾁｰﾑ\n推薦","地区推薦","学校(チーム)名"]
[11,"１",null,null,null,null,null,11,"１"]
[12,"２",null,null,null,null,null,12,"２"]
[13,"３",null,null,null,null,null,13,"３"]
[14,"４",null,null,null,null,null,14,"４"]
[15,"５",null,null,null,null,null,15,"５"]
[16,"６",null,null,null,null,null,16,"６"]
[17,"男子　　　　シングルス","推薦","ブロック","学校(ﾁｰﾑ)名","氏名","学年",17,"女子　　　　シングルス","推薦","ブロック","学校(ﾁｰﾑ)名","氏名","学年"]
[18,"１",null,null,null,null,null,18,"１"]
[19,"２",null,null,null,null,null,19,"２"]
[20,"３",null,null,null,null,null,20,"３"]
[21,"４",null,null,null,null,null,21,"４"]
[22,"５",null,null,null,null,null,22,"５"]
[23,"６",null,null,null,null,null,23,"６"]
[24,"７",null,null,null,null,null,24,"７"]
[25,"８",null,null,null,null,null,25,"８"]
[26,"９",null,null,null,null,null,26,"９"]
[27,10,null,null,null,null,null,27,10]
[28,11,null,null,null,null,null,28,11]
[29,12,null,null,null,null,null,29,12]
[30,13,null,null,null,null,null,30,13]
[31,14,null,null,null,null,null,31,14]
[32,15,null,null,null,null,null,32,15]
[33,16,null,null,null,null,null,33,16]

{"sheet":"入力例","index":2,"n_rows":35,"n_cols":14,"rows_kept":35,"cut":false,"hidden":false,"merged":[[15,4,15,6],[16,4,16,6],[17,4,17,6],[17,11,17,13],[11,11,11,13],[12,11,12,13],[13,11,13,13],[14,11,14,13],[15,11,15,13],[16,11,16,13],[11,4,11,6],[12,4,12,6],[13,4,13,6],[14,4,14,6],[0,1,0,13],[1,1,1,6],[1,8,1,13],[3,2,3,4],[2,2,2,4],[6,2,6,4],[5,2,5,4],[4,2,4,4],[10,2,10,4],[9,2,9,4],[8,2,8,4],[7,2,7,4]]}
[null,"郡市参加一覧（入力・mail用）"]
[null,"男子入力",null,null,null,null,null,null,"女子入力"]
[1,"申込日　　（記入日）","2025-06-17",null,null,null,null,1]
[2,"開催年度",2025,null,null,null,null,2]
[3,"大会名","総合体育大会",null,null,null,null,3]
[4,"郡市名　　(中体連組織)","沼田",null,null,null,null,4]
[5,"委員長勤務　学校名","沼田市立第二中学校",null,null,null,null,5]
[6,"委員長名","沼田　顧問",null,null,null,null,6]
[7,"委員長勤務　学校電話番号","0278-○○-△△△△",null,null,null,null,7]
[8,"委員長勤務　学校ＦＡＸ","0278-□□-××××",null,null,null,null,8]
[9,"委員長連絡先（携帯）","090-○△□×-×□△○",null,null,null,null,9]
[10,"団体戦","ﾁｰﾑ\n推薦","地区推薦","学校(チーム)名",null,null,10,{"$f":"B12","v":"団体戦"},"ﾁｰﾑ\n推薦","地区推薦","学校(チーム)名"]
[11,"１",null,"○","沼田市立沼田中学校",null,null,11,"１",null,null,"沼田市立沼田中学校"]
[12,"２","○",null,"沼田市立北中学校",null,null,12,"２"]
[13,"３",null,null,"沼田市立第二中学校",null,null,13,"３"]
[14,"４",null,null,null,null,null,14,"４"]
[15,"５",null,null,null,null,null,15,"５"]
[16,"６",null,null,null,null,null,16,"６"]
[17,"男子　　　　シングルス","推薦","ブロック","学校(ﾁｰﾑ)名","氏名","学年",17,"女子　　　　シングルス","推薦","ブロック","学校(ﾁｰﾑ)名","氏名","学年"]
[18,"１",null,"Ｂ","沼田","沼田　一郎","３年",18,"１","○","Ａ","沼田北","薄根　花子","３年"]
[19,"２","○","Ｂ","沼田第二","薄根　次郎","３年",19,"２",null,"Ｂ","沼田","南　　幸子","３年"]
[20,"３",null,"Ｄ","沼田北","利根川三郎","２年",20,"３",null,"Ｃ","利根南","沼田　優子","１年"]
[21,"４","○","Ｃ","利根南","沢　　四郎","２年",21,"４",null,"Ｄ","沼田第二","東　　明子","２年"]
[22,"５",null,"Ｃ","利根東","利根　五郎","１年",22,"５",null,"Ａ","利根西","沼田　知美","２年"]
[23,"６",null,"Ａ","沼田第三","沼田　六郎","２年",23,"６"]
[24,"７",null,null,null,null,null,24,"７"]
[25,"８",null,null,null,null,null,25,"８"]
[26,"９",null,null,null,null,null,26,"９"]
[27,10,null,null,null,null,null,27,10]
[28,11,null,null,null,null,null,28,11]
[29,12,null,null,null,null,null,29,12]
[30,13,null,null,null,null,null,30,13]
[31,14,null,null,null,null,null,31,14]
[32,15,null,null,null,null,null,32,15]
[33,16,null,null,null,null,null,33,16]

{"sheet":"リスト","index":3,"n_rows":28,"n_cols":29,"rows_kept":28,"cut":false,"hidden":false,"merged":[]}
["前橋","高崎","桐生みどり","伊勢崎佐波","太田","沼田","館林","渋川北群馬","藤岡多野","富岡甘楽","安中","吾妻","利根","邑楽","前橋市","高崎市","桐生市・みどり市","伊勢崎市・佐波郡","太田市","沼田市","館林市","渋川市・北群馬郡","藤岡市・多野郡","富岡市・甘楽郡","安中市","吾妻郡","利根郡","邑楽郡",{"$f":"A1&\",\"&B1&\",\"&C1&\",\"&D1&\",\"&E1&\",\"&F1&\",\"&G1&\",\"&H1&\",\"&I1&\",\"&J1&\",\"&K1&\",\"&L1&\",\"&M1&\",\"&N1","v":"前橋,高崎,桐生みどり,伊勢崎佐波,太田,沼田,館林,渋川北群馬,藤岡多野,富岡甘楽,安中,吾妻,利根,邑楽"}]
["第一","第一","中央","第一","西","沼田","第一","渋川","東","富岡","第一","中之条","片品","板倉","前橋市立第一中学校",{"$f":"B$1&\"立\"&B2&\"中学校\"","v":"高崎立第一中学校"},"桐生市立中央中学校","伊勢崎市立第一中学校","太田市立西中学校","沼田市立沼田中学校","館林市立第一中学校","渋川市立渋川中学校","藤岡市立東中学校","富岡市立富岡中学校","安中市立第一中学校","中之条町立中之条中学校","片品村立片品中学校","板倉町立板倉中学校","前橋市,高崎市,桐生・みどり市,伊勢崎市・佐波郡,太田市,沼田市,館林市,渋川市・北群馬郡,藤岡市・多野郡,富岡市・甘楽郡,安中市,吾妻郡,利根郡,邑楽郡"]
["みずき","高松","清流","第二","東","沼田南","第二","渋川北","北","西","第二","六合","川場学園","明和","前橋市立みずき中学校",{"$f":"$B$1&\"立\"&B3&\"中学校\"","v":"高崎立高松中学校"},"桐生市立清流中学校","伊勢崎市立第二中学校","太田市立東中学校","沼田市立沼田南中学校","館林市立第二中学校","渋川市立渋川北中学校","藤岡市立北中学校","富岡市立西中学校","安中市立第二中学校","中之条町立六合中学校","川場村立川場学園","明和町立明和中学校"]
["第三","並榎","境野","第三","南","沼田西","第三","金島","小野","北","松井田","長野原","昭和","千代田","前橋市立第三中学校","高崎立並榎中学校","桐生市立境野中学校","伊勢崎市立第三中学校","太田市立南中学校","沼田市立沼田西中学校","館林市立第三中学校","渋川市立金島中学校","藤岡市立小野中学校","富岡市立北中学校","安中市立松井田中学校","長野原町立長野原中学校","昭和村立昭和中学校","千代田町立千代田中学校"]
["第五","豊岡","広沢","第四","休泊","沼田東","第四","古巻","西","南","新島","嬬恋","みなかみ","大泉南","前橋市立第五中学校","高崎立豊岡中学校","桐生市立広沢中学校","伊勢崎市立第四中学校","太田市立休泊中学校","沼田市立沼田東中学校","館林市立第四中学校","渋川市立古巻中学校","藤岡市立西中学校","富岡市立南中学校","新島学園中学校","嬬恋村立嬬恋中学校","みなかみ町立みなかみ中学校","大泉町立南中学校"]
["第六","中尾","梅田","殖蓮","強戸","池田","多々良","伊香保","鬼石","妙義",null,"草津",null,"大泉北","前橋市立第六中学校","高崎立中尾中学校","桐生市立梅田中学校","伊勢崎市立殖蓮中学校","太田市立強戸中学校","沼田市立池田中学校","館林市立多々良中学校","渋川市立伊香保中学校","藤岡市立鬼石中学校","富岡市立妙義中学校",null,"草津町立草津中学校",null,"大泉町立北中学校"]
["桂萱","長野郷","相生","宮郷","宝泉","薄根",null,"子持","上野","しもにた学園",null,"高山",null,"大泉西","前橋市立桂萱中学校","高崎立長野郷中学校","桐生市立相生中学校","伊勢崎市立宮郷中学校","太田市立宝泉中学校","沼田市立薄根中学校",null,"渋川市立子持中学校","上野村立上野中学校","下仁田町立しもにた学園",null,"高山村立高山中学校",null,"大泉町立西中学校"]
["芳賀","大類","川内","赤堀","毛里田","白沢",null,"赤城南","中里","なんもく学園",null,"東吾妻",null,"邑楽","前橋市立芳賀中学校","高崎立大類中学校","桐生市立川内中学校","伊勢崎市立赤堀中学校","太田市立毛里田中学校","沼田市立白沢中学校",null,"渋川市立赤城南中学校","神流町立中里中学校","南牧村立なんもく学園",null,"東吾妻町立東吾妻中学校",null,"邑楽町立邑楽中学校"]
["元総社","塚沢","桜木","あずま","城西","利根",null,"赤城北",null,"甘楽",null,null,null,"邑楽南","前橋市立元総社中学校","高崎立塚沢中学校","桐生市立桜木中学校","伊勢崎市立あずま中学校","太田市立城西中学校","沼田市立利根中学校",null,"渋川市立赤城北中学校",null,null,null,null,null,"邑楽町立南中学校"]
["東","片岡","新里","境北","城東","多那",null,"北橘",null,null,null,null,null,null,"前橋市立東中学校","高崎立片岡中学校","桐生市立新里中学校","伊勢崎市立境北中学校","太田市立城東中学校","沼田市立多那中学校",null,"渋川市立北橘中学校"]
["南橘","佐野","黒保根学園","境西","旭",null,null,"榛東",null,null,null,null,null,null,"前橋市立南橘中学校","高崎立佐野中学校","桐生市立黒保根学園","伊勢崎市立境西中学校","太田市立旭中学校",null,null,"榛東村立榛東中学校"]
["木瀬","南八幡","樹徳","境南","尾島",null,null,"吉岡",null,null,null,null,null,null,"前橋市立木瀬中学校","高崎立南八幡中学校","樹徳中学校","伊勢崎市立境南中学校","太田市立尾島中学校",null,null,"吉岡町立吉岡中学校"]
["荒砥","倉賀野","桐大附属","四ツ葉","木崎",null,null,null,null,null,null,null,null,null,"前橋市立荒砥中学校","高崎立倉賀野中学校","桐生大学附属中学校","伊勢崎市立四ツ葉学園中等教育学校","太田市立木崎中学校"]
["明桜","高南","笠懸","玉村","生品",null,null,null,null,null,null,null,null,null,"前橋市立明桜中学校","高崎立高南中学校","みどり市立笠懸中学校","玉村町立玉村中学校","太田市立生品中学校"]
["鎌倉","寺尾","笠懸南","玉村南","綿打",null,null,null,null,null,null,null,null,null,"前橋市立鎌倉中学校","高崎立寺尾中学校","みどり市立笠懸南中学校","玉村町立南中学校","太田市立綿打中学校"]
["箱田","八幡","大間々",null,"藪塚本町",null,null,null,null,null,null,null,null,null,"前橋市立箱田中学校","高崎立八幡中学校","みどり市立大間々中学校",null,"太田市立藪塚本町中学校"]
["大胡","矢中","大間々東",null,"太田",null,null,null,null,null,null,null,null,null,"前橋市立大胡中学校","高崎立矢中中学校","みどり市立大間々東中学校",null,"太田市立太田中学校"]
["宮城","倉渕","あずま小中",null,"北の杜",null,null,null,null,null,null,null,null,null,"前橋市立宮城中学校","高崎立倉渕中学校","みどり市立あずま小中学校",null,"太田市立北の杜学園"]
["粕川","箕郷",null,null,"ぐんま国際",null,null,null,null,null,null,null,null,null,"前橋市立粕川中学校","高崎立箕郷中学校",null,null,"ぐんま国際アカデミー"]
["富士見","群馬中央",null,null,null,null,null,null,null,null,null,null,null,null,"前橋市立富士見中学校","高崎立群馬中央中学校"]
["群大附属","群馬南",null,null,null,null,null,null,null,null,null,null,null,null,"群馬大学共同教育学部附属中学校","高崎立群馬南中学校"]
["共愛","新町",null,null,null,null,null,null,null,null,null,null,null,null,"共愛学園","高崎立新町中学校"]
[null,"榛名",null,null,null,null,null,null,null,null,null,null,null,null,null,"高崎立榛名中学校"]
[null,"吉井中央",null,null,null,null,null,null,null,null,null,null,null,null,null,"高崎立吉井中央中学校"]
[null,"吉井西",null,null,null,null,null,null,null,null,null,null,null,null,null,"高崎立吉井西中学校"]
[null,"入野",null,null,null,null,null,null,null,null,null,null,null,null,null,"高崎立入野中学校"]
[null,"中央中等",null,null,null,null,null,null,null,null,null,null,null,null,null,"群馬県立中央中等教育学校"]
[null,"農大二",null,null,null,null,null,null,null,null,null,null,null,null,null,"東京農大大学第二高等学校中等部"]